bitfinex-derivatives/quotes_SOLF0:USTF0_20251119
["timestamp","ask_amount","ask_price","bid_price","bid_amount"]
[1763573345299,105.3773,132.97,132.92,0.05044049]
[1763573345503,105.387,132.96,132.92,0.05044049]
[1763573345815,105.4113,132.93,132.86,3.28]
[1763573346206,6.7783,132.89,132.86,3.28]
[1763573346609,105.4113,132.93,132.86,3.28]
[1763573346811,6.7777,132.91,132.86,3.28]
[1763573347013,6.83003263,132.91,132.88,3.33427455]
[1763573347207,0.05233263,132.91,132.88,3.33427455]
[1763573347716,0.05233263,132.91,132.88,0.05427455]
[1763573348015,6.82973263,132.91,132.88,0.05427455]
[1763573348313,0.05233263,132.91,132.88,3.23427455]
[1763573348709,6.82963263,132.91,132.88,0.05427455]
[1763573349009,0.05233263,132.91,132.88,3.23427455]
[1763573349410,6.82973263,132.91,132.88,0.05427455]
[1763573350008,0.05233263,132.91,132.88,3.23427455]
[1763573351812,0.05233263,132.91,132.89,3.18]
[1763573352007,0.05233263,132.91,132.88,0.05427455]
[1763573352912,6.7779,132.9,132.88,0.05427455]
[1763573353815,6.7779,132.9,132.85,16.04]
[1763573353816,6.7798,132.86,132.85,16.04]
[1763573354217,105.4346,132.9,132.85,16.04]
[1763573354419,6.7792,132.88,132.85,16.04]
[1763573354811,6.83449502,132.88,132.85,16.09258222]
[1763573355211,0.05529502,132.88,132.85,16.09258222]
[1763573355715,0.05529502,132.88,132.85,0.05258222]
[1763573356322,6.83419502,132.88,132.85,0.05258222]
[1763573356510,6.83419502,132.88,132.85,3.23258222]
[1763573356511,0.05529502,132.88,132.85,3.23258222]
[1763573357416,0.05529502,132.88,132.85,0.05258222]
[1763573358519,0.05529502,132.88,132.85,3.23258222]
[1763573358724,105.4191,132.92,132.85,19.27258222]
[1763573359020,105.4247,132.91,132.85,19.27258222]
[1763573359220,105.4191,132.92,132.85,19.27258222]
[1763573359525,6.7778,132.9,132.86,3.18]
[1763573359724,6.7778,132.9,132.85,16.09258222]
[1763573359725,0.05381083,132.89,132.87,3.23421363]
[1763573360410,0.05381083,132.89,132.87,0.05421363]
[1763573360619,6.83231083,132.89,132.87,0.05421363]
[1763573361016,0.05381083,132.89,132.87,0.05421363]
[1763573361524,105.3882,132.96,132.88,3.18]
[1763573361717,5.36812576,132.95,132.88,3.18]
[1763573362026,105.3857,132.96,132.88,3.18]
[1763573362227,5.36869664,132.95,132.88,3.18]
[1763573362529,6.7768,132.92,132.9,0.05213548]
[1763573363218,105.441,132.89,132.82,3.18]
[1763573363814,105.4493,132.88,132.82,3.18]
[1763573364331,0.05140035,132.86,132.84,0.04829518]
[1763573365022,0.05140035,132.86,132.84,3.14829518]
[1763573365425,0.05140035,132.86,132.84,0.04829518]
[1763573366330,6.83130035,132.86,132.84,0.04829518]
[1763573366631,0.05140035,132.86,132.84,0.04829518]
[1763573366832,6.83130035,132.86,132.84,0.04829518]
[1763573367441,0.05140035,132.86,132.84,0.04829518]
[1763573367929,6.83130035,132.86,132.84,0.04829518]
[1763573368722,0.05140035,132.86,132.84,0.04829518]
[1763573369925,6.83130035,132.86,132.84,0.04829518]
[1763573373833,6.83130035,132.86,132.84,3.14829518]
[1763573374433,6.83130035,132.86,132.84,0.04829518]
[1763573375228,6.7803,132.85,132.84,0.04829518]
[1763573377034,0.05140035,132.86,132.84,0.04829518]
[1763573377934,0.05140035,132.86,132.84,3.36829518]
[1763573378540,0.05140035,132.86,132.84,0.04829518]
[1763573379337,0.05140035,132.86,132.84,3.36829518]
[1763573380344,0.05140035,132.86,132.84,0.04829518]
[1763573380544,6.83120035,132.86,132.84,0.04829518]
[1763573381443,6.7803,132.85,132.84,0.04829518]
[1763573388354,6.7823,132.82,132.78,3.32]
[1763573388548,112.35172214,132.87,132.78,3.32]
[1763573388749,2.85856197,132.85,132.79,3.32]
[1763573389051,6.781,132.84,132.8,3.32]
[1763573389450,0.05085908,132.83,132.81,0.05361649]
[1763573390143,0.05085908,132.83,132.81,3.37361649]
[1763573391547,0.05085908,132.83,132.81,0.05361649]
[1763573394550,6.936019,132.89,132.81,3.37361649]
[1763573394752,3.13,132.95,132.85,105.4674]
[1763573394955,8.55894254,132.95,132.88,2.85856197]
[1763573395157,3.13,132.95,132.89,16.04]
[1763573395650,0.04957158,132.93,132.91,0.05496443]
[1763573396856,3.17957158,132.93,132.91,0.05496443]
[1763573397743,3.13,132.92,132.91,0.05496443]
[1763573398147,3.13,132.92,132.86,2.85856197]
[1763573398344,3.13,132.92,132.86,16.02]
[1763573398750,3.13,132.92,132.85,6.7799]
[1763573398949,3.13,132.92,132.86,16.02]
[1763573399146,0.04926655,132.9,132.88,0.0561952]
[1763573400155,3.17926655,132.9,132.88,0.0561952]
[1763573400356,0.04926655,132.9,132.88,0.0561952]
[1763573400557,3.17926655,132.9,132.88,0.0561952]
[1763573400757,3.13,132.89,132.88,0.0561952]
[1763573401158,3.13,132.89,132.82,2.85856197]
[1763573401349,2.90782852,132.9,132.8,9.36161735]
[1763573401350,2.85856197,132.86,132.8,2.85856197]
[1763573401952,5.98856197,132.86,132.8,2.85856197]
[1763573402152,105.4511,132.88,132.78,2.85856197]
[1763573402153,3.13,132.83,132.78,2.85856197]
[1763573402353,3.13,132.83,132.74,9.36161735]
[1763573402354,3.13,132.81,132.74,2.85856197]
[1763573402549,3.13,132.81,132.74,18.87856197]
[1763573402754,3.13,132.79,132.69,16.17639065]
[1763573402950,3.13,132.79,132.71,16.02]
[1763573403354,0.05479344,132.76,132.74,0.05567194]
[1763573403750,105.4941,132.83,132.74,0.05567194]
[1763573403751,3.13,132.83,132.74,0.05567194]
[1763573403963,3.13,132.82,132.74,6.7856]
[1763573404158,3.13,132.82,132.72,29.74217428]
[1763573404859,0.05143962,132.78,132.76,0.05385535]
[1763573406149,0.05143962,132.78,132.77,16.02]
[1763573406150,0.00143962,132.78,132.77,16.02]
[1763573406351,3.13,132.86,132.77,16.02]
[1763573406556,3.13,132.86,132.77,22.8042]
[1763573406752,108.6234,132.83,132.77,16.02]
[1763573407062,3.13,132.84,132.73,16.02]
[1763573407257,0.05760371,132.8,132.77,0.05550487]
[1763573408252,3.17760371,132.8,132.77,0.05550487]
[1763573409661,3.12,132.79,132.73,16.02]
[1763573409865,3.12,132.77,132.73,16.02]
[1763573410657,0.04917863,132.76,132.74,0.05061968]
[1763573410858,3.16917863,132.76,132.74,0.05061968]
[1763573411158,0.04917863,132.76,132.74,0.05061968]
[1763573411359,3.16917863,132.76,132.74,0.05061968]
[1763573411759,0.04917863,132.76,132.74,0.05061968]
[1763573413266,3.16917863,132.76,132.74,0.05061968]
[1763573415171,0.04917863,132.76,132.74,0.05061968]
[1763573415471,3.16917863,132.76,132.74,0.05061968]
[1763573415655,3.16917863,132.76,132.67,112.4246733]
[1763573415656,3.12,132.75,132.68,6.7886]
[1763573416056,3.12,132.75,132.68,16.04]
[1763573416260,3.12,132.78,132.69,105.599]
[1763573419568,3.12,132.8,132.73,16.04]
[1763573419875,0.05533888,132.78,132.75,0.0536016]
[1763573420571,3.17533888,132.78,132.75,0.0536016]
[1763573420878,3.12,132.77,132.75,0.0536016]
[1763573421065,0.05533888,132.78,132.75,0.0536016]
[1763573421265,3.12,132.77,132.75,0.0536016]
[1763573422471,3.12,132.76,132.75,0.0536016]
[1763573423068,6.7854,132.75,132.66,6.8147733]
[1763573423272,3.12,132.74,132.67,16.04]
[1763573423976,3.12,132.74,132.67,121.6525]
[1763573424165,0.04930397,132.72,132.69,0.05305522]
[1763573424761,3.3,132.78,132.69,136.8043603]
[1763573424962,3.3,132.78,132.7,105.5882]
[1763573425166,3.3,132.82,132.72,6.8147733]
[1763573425369,3.3,132.82,132.73,16.04]
[1763573425675,10.083,132.8,132.73,16.04]
[1763573426069,0.05567123,132.78,132.75,0.04837544]
[1763573427172,3.35567123,132.78,132.75,0.04837544]
[1763573427870,10.13967123,132.78,132.75,0.04837544]
[1763573428576,3.3,132.77,132.75,0.04837544]
[1763573430165,0.05567123,132.78,132.75,0.04837544]
[1763573430768,3.35567123,132.78,132.75,0.04837544]
[1763573431473,112.2906733,132.85,132.76,16.04]
[1763573431474,3.3,132.85,132.76,16.04]
[1763573431778,10.0804,132.85,132.79,6.7833]
[1763573431973,3.3,132.84,132.73,105.5622]
[1763573432272,10.0809,132.84,132.78,6.7837]
[1763573432666,0.04787357,132.82,132.8,0.04923553]
[1763573433777,3.34787357,132.82,132.8,0.04923553]
[1763573434375,10.12997357,132.82,132.8,0.04923553]
[1763573434880,3.3,132.81,132.8,0.04923553]
[1763573435075,3.34787357,132.82,132.8,0.04923553]
[1763573435275,0.04787357,132.82,132.8,0.04923553]
[1763573437179,3.34787357,132.82,132.8,0.04923553]
[1763573438289,0.04787357,132.82,132.8,0.04923553]
[1763573438590,3.14787357,132.82,132.8,0.04923553]
[1763573440586,9.92977357,132.82,132.8,0.04923553]
[1763573440786,3.1,132.81,132.8,0.04923553]
[1763573440991,0.04787357,132.82,132.8,0.04923553]
[1763573441187,3.14787357,132.82,132.8,0.04923553]
[1763573443581,0.04787357,132.82,132.8,0.04923553]
[1763573444480,0.04787357,132.82,132.8,6.83203553]
[1763573444680,0.04787357,132.82,132.8,0.04923553]
[1763573444875,0.04787357,132.82,132.8,2.90813589]
[1763573445482,3.14787357,132.82,132.8,0.04923553]
[1763573446280,3.1,132.8,132.73,2.85890036]
[1763573446884,9.8836,132.79,132.72,6.7868]
[1763573447289,0.05291753,132.77,132.74,0.05059621]
[1763573448684,0.05291753,132.77,132.75,6.7851]
[1763573449892,0.05291753,132.77,132.74,0.05059621]
[1763573450888,3.15291753,132.77,132.74,0.05059621]
[1763573452999,9.93741753,132.77,132.74,0.05059621]
[1763573453291,3.15291753,132.77,132.74,0.05059621]
[1763573453594,0.05291753,132.77,132.74,0.05059621]
[1763573454194,0.05291753,132.77,132.75,6.7853]
[1763573455185,0.05291753,132.77,132.74,0.05059621]
[1763573456398,0.05291753,132.77,132.74,6.83639621]
[1763573456600,0.05291753,132.77,132.74,0.05059621]
[1763573456900,0.05291753,132.77,132.75,6.7853]
[1763573457795,138.74359388,132.87,132.75,6.7853]
[1763573457796,3.1,132.83,132.78,6.7834]
[1763573458800,3.1,132.81,132.79,0.04962518]
[1763573459004,3.1,132.81,132.79,0.04904687]
[1763573459501,0.05769006,132.82,132.79,0.04904687]
[1763573459502,9.8831,132.8,132.79,0.04904687]
[1763573460098,3.15769006,132.82,132.79,0.04904687]
[1763573460689,3.1,132.81,132.79,0.04904687]
[1763573460889,3.1,132.81,132.7,71.36161735]
[1763573461089,3.1,132.81,132.71,9.36161735]
[1763573461307,9.8835,132.79,132.71,9.36161735]
[1763573461806,9.8835,132.79,132.69,153.10892931]
[1763573461807,3.1,132.75,132.74,0.0549905]
[1763573462104,0.05112697,132.76,132.74,0.0549905]
[1763573462490,3.1,132.84,132.75,105.5505]
[1763573462696,3.1,132.84,132.75,114.91211735]
[1763573463203,6.7819,132.82,132.74,9.36161735]
[1763573463404,9.8819,132.82,132.73,114.92521735]
[1763573463603,0.05767138,132.79,132.76,0.05547268]
[1763573463904,0.05767138,132.79,132.76,6.84027268]
[1763573464201,0.05767138,132.79,132.76,0.05547268]
[1763573464596,3.15767138,132.79,132.76,0.05547268]
[1763573464903,108.68257138,132.79,132.76,0.05547268]
[1763573465098,3.1,132.78,132.76,0.05547268]
[1763573465299,9.8844,132.77,132.76,0.05547268]
[1763573465500,6.7844,132.77,132.69,22.83983178]
[1763573465703,3.1,132.76,132.7,6.7878]
[1763573466292,3.1,132.76,132.69,22.06387473]
[1763573466502,0.05325933,132.74,132.72,105.5742]
[1763573466704,0.00459506,132.74,132.72,105.63190707]
[1763573466897,3.1,132.79,132.75,6.7853]
[1763573467812,0.05109557,132.78,132.76,0.05280587]
[1763573470013,3.09109557,132.78,132.76,0.05280587]
[1763573471705,0.05109557,132.78,132.76,0.05280587]
[1763573472111,0.05109557,132.78,132.76,6.83760587]
[1763573473207,3.04,132.84,132.78,6.7838]
[1763573474211,0.04974755,132.82,132.8,0.055716]
[1763573474410,3.08974755,132.82,132.8,0.055716]
[1763573475220,3.04,132.81,132.8,0.055716]
[1763573476816,3.04,132.79,132.73,9.36161735]
[1763573477012,3.04,132.79,132.71,114.94081735]
[1763573477213,3.04,132.79,132.72,9.36161735]
[1763573477522,9.8235,132.79,132.74,6.7858]
[1763573477721,0.05190264,132.78,132.75,0.05749306]
[1763573477920,3.09190264,132.78,132.75,0.05749306]
[1763573478617,9.87580264,132.78,132.75,0.05749306]
[1763573478818,3.04,132.77,132.75,0.05749306]
[1763573479117,3.04,132.75,132.66,9.36161735]
[1763573479316,3.04,132.72,132.68,22.35512948]
[1763573479817,3.04,132.71,132.62,115.01051735]
[1763573480020,0.05792167,132.68,132.65,0.05040053]
[1763573480621,0.05792167,132.68,132.65,6.84070053]
[1763573480818,0.05792167,132.68,132.65,0.05040053]
[1763573481330,3.04,132.74,132.66,105.6216]
[1763573481815,3.04,132.74,132.69,6.7883]
[1763573482415,0.05486832,132.73,132.7,0.04817335]
[1763573483220,3.09486832,132.73,132.7,0.04817335]
[1763573484122,3.04,132.71,132.62,115.01401735]
[1763573484516,105.5632,132.74,132.61,9.36161735]
[1763573484517,3.04,132.69,132.61,9.36161735]
[1763573484714,3.04,132.69,132.59,13.99920365]
[1763573484715,3.04,132.69,132.6,105.6705]
[1763573484910,3.04,132.69,132.6,167.6705]
[1763573485115,105.5788,132.72,132.63,0.05726362]
[1763573485116,3.36105505,132.66,132.63,0.05726362]
[1763573485520,0.05105505,132.66,132.63,0.05726362]
[1763573486624,3.36105505,132.66,132.63,0.05726362]
[1763573487219,3.31,132.64,132.63,0.05726362]
[1763573487523,3.36105505,132.66,132.63,0.05726362]
[1763573487725,0.05105505,132.66,132.63,0.05726362]
[1763573490729,0.05105505,132.66,132.63,6.84866362]
[1763573491815,0.05105505,132.66,132.63,0.05726362]
[1763573492020,3.36105505,132.66,132.63,0.05726362]
[1763573493429,0.05105505,132.66,132.63,6.84856362]
[1763573493726,0.05105505,132.66,132.63,0.05726362]
[1763573494826,0.05105505,132.66,132.64,6.7908]
[1763573495127,0.05105505,132.66,132.63,0.05726362]
[1763573495323,3.36105505,132.66,132.63,0.05726362]
[1763573497726,0.05105505,132.66,132.64,6.7908]
[1763573500036,3.18105505,132.66,132.63,0.05726362]
[1763573505736,3.13,132.63,132.54,11.98503899]
[1763573505938,3.13,132.61,132.51,10.67309388]
[1763573506127,105.661,132.62,132.51,10.67309388]
[1763573506128,9.9241,132.59,132.51,10.67309388]
[1763573506324,105.661,132.62,132.51,1.31273694]
[1763573506325,3.13,132.62,132.51,1.31273694]
[1763573506530,3.13,132.62,132.51,107.05303694]
[1763573506829,0.04782148,132.58,132.55,6.85252111]
[1763573507024,0.04782148,132.58,132.55,0.05254146]
[1763573507426,3.13,132.65,132.57,105.6949]
[1763573507829,3.13,132.65,132.59,6.7935]
[1763573508542,0.05565241,132.63,132.61,0.05216978]
[1763573509637,3.18565241,132.63,132.61,0.05216978]
[1763573509824,9.97725241,132.63,132.61,0.05216978]
[1763573510138,3.18565241,132.63,132.61,0.05216978]
[1763573512939,3.13,132.62,132.61,0.05216978]
[1763573515434,0.05565241,132.63,132.61,0.05216978]
[1763573515832,0.05565241,132.63,132.61,6.84466978]
[1763573516441,0.05565241,132.63,132.61,0.05216978]
[1763573517548,0.05565241,132.63,132.61,6.84466978]
[1763573517744,3.18565241,132.63,132.61,0.05216978]
[1763573518250,0.05565241,132.63,132.61,0.05216978]
[1763573519544,3.18565241,132.63,132.61,0.05216978]
[1763573519947,9.97735241,132.63,132.61,0.05216978]
[1763573520245,0.05565241,132.63,132.61,0.05216978]
[1763573520844,0.05565241,132.63,132.61,6.84466978]
[1763573521043,0.05565241,132.63,132.61,0.05216978]
[1763573522653,3.13,132.69,132.61,114.03751525]
[1763573522947,3.13,132.74,132.65,105.6296]
[1763573523142,9.9162,132.74,132.66,6.7897]
[1763573523345,3.13,132.74,132.67,6.82764547]
[1763573523556,3.13,132.78,132.67,112.43984547]
[1763573523858,3.18381496,132.74,132.71,0.05209839]
[1763573524853,0.05381496,132.74,132.71,0.05209839]
[1763573525060,3.18381496,132.74,132.71,0.05209839]
[1763573525943,108.7098,132.72,132.64,6.82764547]
[1763573526147,3.13,132.71,132.64,6.82764547]
[1763573526452,3.13,132.71,132.6,105.6683]
[1763573526453,3.13,132.7,132.6,105.6683]
[1763573526752,3.13,132.7,132.62,6.82764547]
[1763573527145,0.05026214,132.67,132.65,0.04919422]
[1763573527356,3.18026214,132.67,132.65,0.04919422]
[1763573528152,3.04,132.66,132.58,6.7938]
[1763573528342,3.04,132.66,132.59,6.82764547]
[1763573529153,9.8308,132.65,132.59,6.82764547]
[1763573529448,0.05784884,132.63,132.61,0.04937433]
[1763573529954,3.09784884,132.63,132.61,0.04937433]
[1763573531845,0.05784884,132.63,132.61,0.04937433]
[1763573532051,3.09784884,132.63,132.61,0.04937433]
[1763573532848,9.88964884,132.63,132.61,0.04937433]
[1763573533049,3.04,132.62,132.61,0.04937433]
[1763573533448,3.04,132.62,132.56,6.82764547]
[1763573533653,3.04,132.62,132.56,13.62264547]
[1763573534561,0.04963672,132.6,132.58,0.05099339]
[1763573535855,3.08963672,132.6,132.58,0.05099339]
[1763573536057,0.04963672,132.6,132.58,0.05099339]
[1763573537852,3.04,132.59,132.51,34.68450312]
[1763573538052,3.04,132.59,132.54,6.82764547]
[1763573538855,0.05007954,132.58,132.55,0.05104292]
[1763573539260,3.09007954,132.58,132.55,0.05104292]
[1763573540060,0.05007954,132.58,132.55,0.05104292]
[1763573540659,0.05007954,132.58,132.56,6.7951]
[1763573541251,3.04,132.65,132.56,6.7951]
[1763573541252,3.04,132.65,132.58,6.7938]
[1763573541548,3.04,132.65,132.58,105.6856]
[1763573541751,3.04,132.69,132.62,6.7918]
[1763573542366,3.09146221,132.67,132.64,0.05459114]
[1763573543261,9.8309,132.65,132.57,6.82764547]
[1763573543953,105.5979,132.7,132.6,6.7929]
[1763573544163,3.04,132.69,132.59,105.677]
[1763573544468,3.04,132.64,132.63,0.04962182]
[1763573545860,3.04,132.64,132.56,9.36161735]
[1763573546070,3.04,132.64,132.56,112.52714547]
[1763573546371,3.04,132.64,132.57,105.6929]
[1763573547063,3.33,132.7,132.6,105.6699]
[1763573547653,3.33,132.68,132.62,6.7916]
[1763573547862,3.33,132.68,132.59,6.82764547]
[1763573548066,3.33,132.68,132.59,112.50214547]
[1763573548368,0.04927775,132.65,132.62,0.05014367]
[1763573548760,3.37927775,132.65,132.62,0.05014367]
[1763573551573,3.33,132.56,132.55,5.6]
[1763573552169,10.1256,132.56,132.48,14.93948146]
[1763573552368,10.1256,132.56,132.48,10.87048146]
[1763573552572,0.05783042,132.53,132.51,0.05214197]
[1763573553168,0.05783042,132.53,132.51,16.07214197]
[1763573553762,3.38783042,132.53,132.51,0.05214197]
[1763573553969,3.38783042,132.53,132.51,16.07214197]
[1763573555874,3.38783042,132.53,132.51,0.05214197]
[1763573556074,3.33,132.52,132.47,16.02]
[1763573557080,3.33,132.51,132.45,16.02]
[1763573557267,3.33,132.48,132.47,0.05019049]
[1763573557474,3.33,132.48,132.42,16.02]
[1763573558273,3.29,132.51,132.43,108.6429]
[1763573558473,0.05725825,132.48,132.46,0.05743553]
[1763573561377,3.34725825,132.48,132.46,0.05743553]
[1763573563272,0.05725825,132.48,132.46,0.05743553]
[1763573563482,3.34725825,132.48,132.46,0.05743553]
[1763573564780,10.14675825,132.48,132.46,0.05743553]
[1763573565083,3.29,132.47,132.46,0.05743553]
[1763573566072,3.29,132.45,132.4,2.84]
[1763573566272,3.29,132.45,132.4,18.88]
[1763573566884,3.29,132.45,132.41,2.89]
[1763573567076,0.05456773,132.44,132.41,2.94577448]
[1763573568282,0.05456773,132.44,132.42,6.8022]
[1763573568481,3.29,132.5,132.43,2.89]
[1763573568886,3.29,132.5,132.4,25.75764547]
[1763573569186,3.29,132.5,132.41,2.89]
[1763573569388,3.29,132.49,132.41,2.89]
[1763573569580,3.34398637,132.46,132.44,0.05095567]
[1763573570384,0.05398637,132.46,132.44,2.94095567]
[1763573574884,0.05398637,132.46,132.44,9.74205567]
[1763573576093,0.05398637,132.46,132.45,2.89]
[1763573579090,0.05398637,132.46,132.44,0.05095567]
[1763573580390,3.34398637,132.46,132.44,0.05095567]
[1763573581299,3.29,132.45,132.44,0.05095567]
[1763573582797,0.05398637,132.46,132.44,0.05095567]
[1763573583199,3.34398637,132.46,132.44,0.05095567]
[1763573584397,3.29,132.45,132.44,0.05095567]
[1763573584795,3.29,132.4,132.36,2.89]
[1763573585000,3.29,132.46,132.36,2.89]
[1763573585402,3.29,132.43,132.36,2.95]
[1763573585790,3.29,132.43,132.38,9.80951957]
[1763573585791,0.05145828,132.41,132.38,9.80951957]
[1763573586102,0.05145828,132.41,132.39,2.95]
[1763573586302,0.05145828,132.41,132.39,18.99]
[1763573587503,0.05145828,132.41,132.39,25.7938]
[1763573587897,0.05145828,132.41,132.4,2.95]
[1763573588708,0.05145828,132.41,132.39,18.99]
[1763573588908,0.05145828,132.41,132.39,16.04]
[1763573589110,3.23145828,132.41,132.39,16.04]
[1763573589305,3.23145828,132.41,132.38,0.05521957]
[1763573590109,0.05145828,132.41,132.38,3.00521957]
[1763573590502,0.05145828,132.41,132.4,2.95]
[1763573590707,0.05145828,132.41,132.4,18.99]
[1763573591309,0.05145828,132.41,132.4,16.04]
[1763573592000,3.23145828,132.41,132.4,16.04]
[1763573592194,0.05145828,132.41,132.4,16.04]
[1763573592498,0.05145828,132.41,132.4,18.99]
[1763573592897,0.05145828,132.41,132.38,0.05521957]
[1763573592898,3.23145828,132.41,132.38,0.05521957]
[1763573593112,3.18,132.4,132.38,0.05521957]
[1763573593611,3.23145828,132.41,132.38,0.05521957]
[1763573594205,3.23145828,132.41,132.38,3.00521957]
[1763573594406,0.05145828,132.41,132.38,3.00521957]
[1763573594912,0.05145828,132.41,132.4,2.95]
[1763573595504,0.05145828,132.41,132.39,18.99]
[1763573596402,0.05145828,132.41,132.39,16.04]
[1763573596604,0.05145828,132.41,132.39,18.99]
[1763573597202,0.05145828,132.41,132.38,3.00521957]
[1763573597403,0.05145828,132.41,132.39,16.04]
[1763573597911,3.18,132.4,132.38,0.05521957]
[1763573598209,6.8041,132.39,132.35,16.04]
[1763573598402,3.18,132.38,132.35,16.04]
[1763573598601,6.8041,132.39,132.35,19.04]
[1763573598800,9.9841,132.39,132.35,19.04]
[1763573599205,0.05423626,132.38,132.36,0.04759657]
[1763573599402,3.23423626,132.38,132.36,0.04759657]
[1763573599609,3.18,132.37,132.32,19.04]
[1763573600013,3.18,132.36,132.32,19.04]
[1763573600203,3.18,132.36,132.28,3.0]
[1763573600403,3.18,132.36,132.29,16.04]
[1763573600703,0.05458372,132.34,132.31,3.0485067]
[1763573601112,3.23458372,132.34,132.31,0.0485067]
[1763573601311,3.18,132.31,132.25,3.0]
[1763573602105,9.9888,132.3,132.25,3.0]
[1763573602304,3.18,132.29,132.26,0.0529127]
[1763573602600,3.23348271,132.29,132.26,0.0529127]
[1763573603718,3.18,132.26,132.19,3.1]
[1763573604603,3.18,132.29,132.19,3.1]
[1763573604802,0.05225849,132.25,132.23,3.13909649]
[1763573605219,0.05225849,132.25,132.23,0.02909649]
[1763573605421,3.41225849,132.25,132.23,0.02909649]
[1763573605615,0.05225849,132.25,132.23,0.02909649]
[1763573605920,0.05225849,132.25,132.23,3.13909649]
[1763573606420,3.41225849,132.25,132.23,0.02909649]
[1763573607004,0.05225849,132.25,132.23,0.02909649]
[1763573607203,3.41225849,132.25,132.23,0.02909649]
[1763573607406,3.41225849,132.25,132.16,109.1297]
[1763573607607,3.36,132.25,132.17,19.19]
[1763573607814,3.36,132.25,132.18,3.13]
[1763573608513,0.05335492,132.23,132.18,3.13]
[1763573608716,3.41335492,132.23,132.18,3.13]
[1763573609019,0.05335492,132.23,132.18,3.13]
[1763573609216,0.05335492,132.23,132.2,3.13]
[1763573609816,0.05335492,132.23,132.21,3.13]
[1763573610405,0.05335492,132.23,132.22,16.06]
[1763573610622,10.1676,132.32,132.23,3.08]
[1763573610816,109.2657,132.31,132.22,16.06]
[1763573611122,105.8999,132.32,132.21,16.06]
[1763573611123,3.36,132.27,132.21,16.06]
[1763573611335,3.36,132.27,132.21,19.14]
[1763573611620,0.04877699,132.25,132.23,3.13335492]
[1763573611809,0.05333101,132.25,132.23,3.13335492]
[1763573612208,0.05333101,132.25,132.23,0.05335492]
[1763573612413,109.36443101,132.25,132.23,0.00335492]
[1763573612723,3.36,132.24,132.23,0.00335492]
[1763573613718,0.05333101,132.25,132.23,0.00335492]
[1763573613914,3.41333101,132.25,132.23,0.00335492]
[1763573618017,0.05333101,132.25,132.23,0.00335492]
[1763573618221,3.21333101,132.25,132.23,0.00335492]
[1763573618426,0.05333101,132.25,132.23,0.00335492]
[1763573618623,3.21333101,132.25,132.23,0.00335492]
[1763573618818,0.05333101,132.25,132.23,0.00335492]
[1763573621432,0.05333101,132.25,132.24,3.13]
[1763573621726,3.16,132.32,132.24,3.13]
[1763573621921,3.16,132.32,132.25,3.13]
[1763573622517,0.05686494,132.3,132.27,3.18157012]
[1763573623032,3.16,132.38,132.29,3.13]
[1763573623225,3.16,132.38,132.3,19.21]
[1763573623426,3.16,132.38,132.31,3.13]
[1763573623628,9.9648,132.38,132.31,9.9378]
[1763573624131,3.20915167,132.36,132.33,0.05430603]
[1763573624636,0.04915167,132.36,132.33,3.18430603]
[1763573626227,3.20915167,132.36,132.33,0.05430603]
[1763573626425,0.04915167,132.36,132.33,3.18430603]
[1763573627335,3.20915167,132.36,132.33,0.05430603]
[1763573628036,0.04915167,132.36,132.33,3.18430603]
[1763573628547,0.04915167,132.36,132.34,3.13]
[1763573628835,0.04915167,132.36,132.35,16.08]
[1763573629823,0.04915167,132.36,132.34,3.13]
[1763573630035,0.04915167,132.36,132.35,16.08]
[1763573630833,3.20915167,132.36,132.33,16.13430603]
[1763573631230,3.16,132.35,132.33,16.13430603]
[1763573632039,3.20915167,132.36,132.33,16.13430603]
[1763573634935,3.20915167,132.36,132.33,0.05430603]
[1763573636041,3.16,132.35,132.26,3.13]
[1763573636339,109.0479,132.33,132.27,3.18]
[1763573636542,3.16,132.32,132.27,3.18]
[1763573637138,0.05642652,132.31,132.28,3.23714391]
[1763573640445,109.12252652,132.31,132.28,0.05714391]
[1763573640644,3.16,132.3,132.28,0.05714391]
[1763573640832,3.16,132.29,132.25,3.18]
[1763573641543,3.16,132.33,132.25,3.18]